fUSD/lending_fUSD_20250206
["ID","MTS","AMOUNT","RATE_DAILY","PERIOD"]
[352010598,1738877456489,-500.0,0.00017784,2]
[352010599,1738877456498,-500.0,0.00017784,2]
[352010600,1738877456508,-500.0,0.00017784,2]
[352010601,1738877456517,-500.0,0.00017784,2]
[352010602,1738877456526,-164.23,0.00017784,2]
[352010603,1738877456535,-642.88,0.00017784,2]
[352010604,1738877456544,-500.0,0.00017784,2]
[352010605,1738877456553,-500.0,0.00017784,2]
[352010606,1738877456563,-500.0,0.00017784,2]
[352010607,1738877456573,-500.0,0.00017784,2]
[352010608,1738877456583,-393.79,0.00017784,2]
[352010609,1738877456592,-500.0,0.00017784,2]
[352010610,1738877456602,-500.0,0.00017784,2]
[352010611,1738877456612,-500.0,0.00017784,2]
[352010612,1738877456621,-645.74,0.00017784,2]
[352010613,1738877456631,-500.0,0.00017784,2]
[352010614,1738877456641,-500.0,0.00017784,2]
[352010615,1738877456651,-500.0,0.00017784,2]
[352010616,1738877456666,-500.0,0.00017784,2]
[352010617,1738877456681,-500.0,0.00017784,2]
[352010618,1738877456690,-500.0,0.00017784,2]
[352010619,1738877456699,-500.0,0.00017784,2]
[352010620,1738877456710,-273.67251344,0.00017784,2]
[352010621,1738877456719,-468.28,0.00017784,2]
[352010622,1738877456728,-500.0,0.00017784,2]
[352010623,1738877456737,-500.0,0.00017784,2]
[352010624,1738877456747,-500.0,0.00017784,2]
[352010625,1738877456757,-640.25,0.00017784,2]
[352010626,1738877456766,-500.0,0.00017784,2]
[352010627,1738877456776,-301.6,0.00017784,2]
[352010628,1738877456786,-500.0,0.00017784,2]
[352010629,1738877456795,-500.0,0.00017784,2]
[352010630,1738877456804,-500.0,0.00017784,2]
[352010631,1738877456814,-500.0,0.00017784,2]
[352010632,1738877456823,-500.0,0.00017784,2]
[352010633,1738877456832,-500.0,0.00017784,2]
[352010634,1738877456841,-284.64,0.00017784,2]
[352010635,1738877456851,-500.0,0.00017784,2]
[352010636,1738877456860,-500.0,0.00017784,2]
[352010637,1738877456869,-500.0,0.00017784,2]
[352010638,1738877456878,-500.0,0.00017784,2]
[352010639,1738877456887,-601.34,0.00017784,2]
[352010640,1738877456897,-500.0,0.00017784,2]
[352010641,1738877456907,-151.0,0.00017784,2]
[352010642,1738877456916,-728.77,0.00017784,2]
[352010643,1738877456928,-500.0,0.00017784,2]
[352010644,1738877456938,-500.0,0.00017784,2]
[352010645,1738877456947,-500.0,0.00017784,2]
[352010646,1738877456957,-500.0,0.00017784,2]
[352010647,1738877456968,-156.921718,0.00017784,2]
[352010648,1738877456979,-500.0,0.00017784,2]
[352010649,1738877456987,-500.0,0.00017784,2]
[352010650,1738877456997,-774.57,0.00017784,2]
[352010651,1738877457007,-500.0,0.00017784,2]
[352010652,1738877457017,-564.03,0.00017784,2]
[352010653,1738877457027,-155.564856,0.00017784,2]
[352010654,1738877457041,-500.0,0.00017784,2]
[352010655,1738877457051,-500.0,0.00017784,2]
[352010656,1738877457061,-500.0,0.00017784,2]
[352010657,1738877457071,-500.0,0.00017784,2]
[352010658,1738877457081,-655.03,0.00017784,2]
[352010659,1738877457091,-532.71,0.00017784,2]
[352010660,1738877457101,-500.0,0.00017784,2]
[352010661,1738877457111,-733.01,0.00017784,2]
[352010662,1738877457122,-500.0,0.00017784,2]
[352010663,1738877457133,-615.44,0.00017784,2]
[352010664,1738877457143,-500.0,0.00017784,2]
[352010665,1738877457154,-500.0,0.00017784,2]
[352010666,1738877457165,-500.0,0.00017784,2]
[352010667,1738877457175,-913.04,0.00017784,2]
[352010668,1738877457184,-782.55,0.00017784,2]
[352010669,1738877457194,-500.0,0.00017784,2]
[352010670,1738877457203,-1159.47,0.00017784,2]
[352010671,1738877457213,-1295.06,0.00017784,2]
[352010672,1738877457222,-1114.59,0.00017784,2]
[352010673,1738877457232,-500.0,0.00017784,2]
[352010674,1738877457241,-549.45,0.00017784,2]
[352010675,1738877457250,-530.9,0.00017784,2]
[352010676,1738877457260,-1027.73,0.00017784,2]
[352010677,1738877457270,-500.0,0.00017784,2]
[352010678,1738877457279,-683.79,0.00017784,2]
[352010679,1738877457290,-1902.23,0.00017784,2]
[352010680,1738877457299,-2212.42,0.00017784,2]
[352010681,1738877457309,-500.0,0.00017784,2]
[352010682,1738877457319,-500.0,0.00017784,2]
[352010683,1738877457331,-1063.34,0.00017784,2]
[352010684,1738877457340,-500.0,0.00017784,2]
[352010685,1738877457349,-500.0,0.00017784,2]
[352010686,1738877457359,-858.47,0.00017784,2]
[352010687,1738877457369,-836.33,0.00017784,2]
[352010688,1738877457378,-735.99,0.00017784,2]
[352010689,1738877457388,-500.0,0.00017784,2]
[352010690,1738877457397,-701.33,0.00017784,2]
[352010691,1738877457407,-633.47,0.00017784,2]
[352010692,1738877457416,-500.0,0.00017784,2]
[352010693,1738877457425,-1270.6,0.00017784,2]
[352010694,1738877457435,-500.0,0.00017784,2]
[352010695,1738877457445,-514.06,0.00017784,2]
[352010696,1738877457454,-500.0,0.00017784,2]
[352010697,1738877457464,-500.0,0.00017784,2]
[352010698,1738877457474,-500.0,0.00017784,2]
[352010699,1738877457483,-864.15,0.00017784,2]
[352010700,1738877457493,-500.0,0.00017784,2]
[352010701,1738877457502,-500.0,0.00017784,2]
[352010702,1738877457512,-500.0,0.00017784,2]
[352010703,1738877457522,-522.68,0.00017784,2]
[352010704,1738877457531,-500.0,0.00017784,2]
[352010705,1738877457540,-934.1,0.00017784,2]
[352010706,1738877457550,-500.0,0.00017784,2]
[352010707,1738877457559,-697.18,0.00017784,2]
[352010708,1738877457570,-500.0,0.00017784,2]
[352010709,1738877457580,-500.0,0.00017784,2]
[352010710,1738877457590,-500.0,0.00017784,2]
[352010711,1738877457600,-659.1,0.00017784,2]
[352010712,1738877457610,-503.69,0.00017784,2]
[352010713,1738877457619,-662.32,0.00017784,2]
[352010714,1738877457629,-150.0,0.00017785,2]
[352010715,1738877457639,-1006.48,0.00017787,2]
[352010716,1738877457648,-766.58,0.00017795,2]
[352010717,1738877457658,-300.0,0.00017795,2]
[352010718,1738877457667,-300.0,0.00017795,2]
[352010719,1738877457677,-300.0,0.00017795,2]
[352010720,1738877457686,-933380.65457819,0.00017796,3]
[352010721,1738877457696,-151.0,0.00017796,2]
[352010722,1738877457705,-151.0,0.00017796,2]
[352010723,1738877457715,-730.96,0.00017799,2]
[352010724,1738877457725,-555.39,0.00017799,2]
[352010725,1738877457734,-1164.37,0.00017799,2]
[352010726,1738877457743,-500.0,0.00017799,2]
[352010727,1738877457753,-600.37,0.00017799,2]
[352010728,1738877457763,-500.0,0.00017799,2]
[352010729,1738877457773,-819.93,0.00017799,2]
[352010730,1738877457783,-855.32,0.00017799,2]
[352010731,1738877457793,-500.0,0.00017799,2]
[352010732,1738877457803,-563.31,0.00017799,2]
[352010733,1738877457813,-686.03,0.00017799,2]
[352010734,1738877457823,-500.0,0.00017799,2]
[352010735,1738877457833,-590.98,0.00017799,2]
[352010736,1738877457843,-500.0,0.00017799,2]
[352010737,1738877457854,-919.03,0.00017799,2]
[352010738,1738877457865,-893.13,0.00017799,2]
[352010739,1738877457875,-500.0,0.00017799,2]
[352010740,1738877457885,-610.64,0.00017799,2]
[352010741,1738877457895,-980.37,0.00017799,2]
[352010742,1738877457904,-1638.55,0.00017799,2]
[352010743,1738877457914,-2549.26,0.00017799,2]
[352010744,1738877457924,-300.0,0.00017799,2]
[352010745,1738877457934,-300.0,0.00017799,2]
[352010746,1738877457943,-300.0,0.00017799,2]
[352010747,1738877457953,-300.0,0.000178,2]
[352010748,1738877457964,-150103.5962483,0.000178,2]
[352010749,1738877457973,-500.0,0.000178,2]
[352010750,1738877457984,-500.0,0.000178,2]
[352010751,1738877457993,-500.0,0.000178,2]
[352010752,1738877458003,-500.0,0.000178,2]
[352010753,1738877458012,-500.0,0.000178,2]
[352010754,1738877458023,-500.0,0.000178,2]
[352010755,1738877458034,-500.0,0.000178,2]
[352010756,1738877458044,-500.0,0.000178,2]
[352010757,1738877458055,-500.0,0.000178,2]
[352010758,1738877458065,-500.0,0.000178,2]
[352010759,1738877458074,-500.0,0.000178,2]
[352010760,1738877458084,-500.0,0.000178,2]
[352010761,1738877458093,-288.8,0.000178,2]
[352010762,1738877458104,-500.0,0.000178,2]
[352010763,1738877458113,-500.0,0.000178,2]
[352010764,1738877458124,-500.0,0.000178,2]
[352010765,1738877458134,-500.0,0.000178,2]
[352010766,1738877458144,-370.36,0.000178,2]
[352010767,1738877458154,-500.0,0.000178,2]
[352010768,1738877458164,-500.0,0.000178,2]
[352010769,1738877458174,-343.62,0.000178,2]
[352010770,1738877458185,-500.0,0.000178,2]
[352010771,1738877458194,-500.0,0.000178,2]
[352010772,1738877458205,-500.0,0.000178,2]
[352010773,1738877458215,-280.92978614,0.000178,2]
[352010774,1738877458224,-500.0,0.000178,2]
[352010775,1738877458234,-500.0,0.000178,2]
[352010776,1738877458244,-770.63,0.000178,2]
[352010777,1738877458254,-789.51,0.000178,2]
[352010778,1738877458263,-500.0,0.000178,2]
[352010779,1738877458273,-748.76,0.000178,2]
[352010780,1738877458283,-565.55,0.000178,2]
[352010781,1738877458293,-874.49,0.000178,2]
[352010782,1738877458303,-596.91,0.000178,2]
[352010783,1738877458312,-743.54,0.000178,2]
[352010784,1738877458323,-512.4,0.000178,2]
[352010785,1738877458332,-500.0,0.000178,2]
[352010786,1738877458342,-714.84,0.000178,2]
[352010787,1738877458352,-408.12,0.000178,2]
[352010788,1738877458361,-575.38,0.000178,2]
[352010789,1738877458371,-500.0,0.000178,2]
[352010790,1738877458380,-225.16,0.000178,2]
[352010791,1738877458390,-500.0,0.000178,6]
[352010792,1738877458400,-500.0,0.00017801,2]
[352010793,1738877458409,-500.0,0.00017801,2]
[352010794,1738877458419,-500.0,0.00017801,2]
[352010795,1738877458429,-500.0,0.00017801,2]
[352010796,1738877458439,-500.0,0.00017801,2]
[352010797,1738877458448,-274.75,0.00017801,2]
[352010798,1738877458458,-500.0,0.00017801,2]
[352010799,1738877458467,-500.0,0.00017801,2]
[352010800,1738877458476,-500.0,0.00017801,2]
[352010801,1738877458630,-500.0,0.00017801,2]
[352010802,1738877458640,-500.0,0.00017801,2]
[352010803,1738877458649,-500.0,0.00017801,2]
[352010804,1738877458659,-500.0,0.00017801,2]
[352010805,1738877458668,-500.0,0.00017801,2]
[352010806,1738877458677,-500.0,0.00017801,2]
[352010807,1738877458687,-500.0,0.00017801,2]
[352010808,1738877458697,-500.0,0.00017801,2]
[352010809,1738877458707,-500.0,0.00017801,2]
[352010810,1738877458717,-500.0,0.00017801,2]
[352010811,1738877458727,-229.76,0.00017801,2]
[352010812,1738877458736,-500.0,0.00017801,2]
[352010813,1738877458746,-500.0,0.00017801,2]
[352010814,1738877458755,-500.0,0.00017801,2]
[352010815,1738877458764,-500.0,0.00017801,2]
[352010816,1738877458774,-468.16,0.00017801,2]
[352010817,1738877458784,-500.0,0.00017801,2]
[352010818,1738877458794,-500.0,0.00017801,2]
[352010819,1738877458804,-500.0,0.00017801,2]
[352010820,1738877458813,-500.0,0.00017801,2]
[352010821,1738877458823,-500.0,0.00017801,2]
[352010822,1738877458832,-500.0,0.00017801,2]
[352010823,1738877458842,-500.0,0.00017801,2]
[352010824,1738877458852,-410.08,0.00017801,2]
[352010825,1738877458861,-500.0,0.00017801,2]
[352010826,1738877458870,-1856.0,0.00017803,2]
[352010827,1738877458880,-1856.0,0.0001783,2]
[352010828,1738877458889,-500.0,0.00017832,2]
[352010829,1738877458898,-200.36,0.00017838,2]
[352010830,1738877458908,-1856.0,0.00017858,2]
[352010831,1738877458917,-2518.55292469,0.00017863,5]
[352010832,1738877458927,-355.98959066,0.00017864,2]
[352010833,1738877458936,-1856.0,0.00017885,2]
[352010834,1738877458946,-156.39864357,0.00017892,2]
[352010835,1738877458956,-1121.82603401,0.00017898,5]
[352010836,1738877458965,-944.92907392,0.00017899,2]
[352010837,1738877458974,-4110.41401839,0.00017899,2]
[352010838,1738877458983,-395.60875752,0.00017899,3]
[352010839,1738877458993,-3067.98305713,0.00017899,2]
[352010840,1738877459003,-691.63134972,0.00017899,2]
[352010841,1738877459013,-207.72485393,0.00017899,2]
[352010842,1738877459023,-12235.65275306,0.00017899,2]
[352010843,1738877459034,-20740.22369564,0.000179,2]
[352010844,1738877459044,-205.0,0.000179,2]
[352010845,1738877459054,-315.45349275,0.000179,2]
[352010846,1738877459064,-315.45349275,0.000179,2]
[352010847,1738877459074,-315.45349275,0.000179,2]
[352010848,1738877459084,-315.45349275,0.000179,2]
[352010849,1738877459093,-315.45349275,0.000179,2]
[352010850,1738877459103,-315.45349275,0.000179,2]
[352010851,1738877459115,-315.45349275,0.000179,2]
[352010852,1738877459126,-315.45349275,0.000179,2]
[352010853,1738877459136,-315.45349275,0.000179,2]
[352010854,1738877459145,-315.45349275,0.000179,2]
[352010855,1738877459155,-315.45349275,0.000179,2]
[352010856,1738877459164,-315.45349275,0.000179,2]
[352010857,1738877459174,-315.45349275,0.000179,2]
[352010858,1738877459183,-315.45349275,0.000179,2]
[352010859,1738877459193,-315.45349275,0.000179,2]
[352010860,1738877459202,-315.45349275,0.000179,2]
[352010861,1738877459211,-315.45349275,0.000179,2]
[352010862,1738877459220,-315.45349275,0.000179,2]
[352010863,1738877459230,-315.45349275,0.000179,2]
[352010864,1738877459240,-315.45,0.000179,2]
[352010865,1738877459250,-329.78706414,0.000179,2]
[352010866,1738877459260,-329.78706414,0.000179,2]
[352010867,1738877459269,-329.78706414,0.000179,2]
[352010868,1738877459279,-329.78706414,0.000179,2]
[352010869,1738877459288,-329.78706414,0.000179,2]
[352010870,1738877459298,-329.78706414,0.000179,2]
[352010871,1738877459308,-329.78706414,0.000179,2]
[352010872,1738877459318,-329.78706414,0.000179,2]
[352010873,1738877459328,-329.78706414,0.000179,2]
[352010874,1738877459338,-329.78706414,0.000179,2]
[352010875,1738877459348,-329.78706414,0.000179,2]
[352010876,1738877459358,-329.78706414,0.000179,2]
[352010877,1738877459368,-329.78706414,0.000179,2]
[352010878,1738877459378,-329.78706414,0.000179,2]
[352010879,1738877459389,-329.78706414,0.000179,2]
[352010880,1738877459399,-329.78706414,0.000179,2]
[352010881,1738877459408,-329.78706414,0.000179,2]
[352010882,1738877459418,-329.78706414,0.000179,2]
[352010883,1738877459427,-329.78706414,0.000179,2]
[352010884,1738877459438,-329.78,0.000179,2]
[352010885,1738877459449,-419.66574531,0.000179,2]
[352010886,1738877459459,-419.66574531,0.000179,2]
[352010887,1738877459468,-419.66574531,0.000179,2]
[352010888,1738877459478,-419.66574531,0.000179,2]
[352010889,1738877459487,-419.66574531,0.000179,2]
[352010890,1738877459497,-419.66574531,0.000179,2]
[352010891,1738877459507,-419.66574531,0.000179,2]
[352010892,1738877459516,-419.66574531,0.000179,2]
[352010893,1738877459526,-419.66574531,0.000179,2]
[352010894,1738877459537,-419.66574531,0.000179,2]
[352010895,1738877459548,-419.66574531,0.000179,2]
[352010896,1738877459558,-419.66574531,0.000179,2]
[352010897,1738877459568,-419.66574531,0.000179,2]
[352010898,1738877459578,-419.66574531,0.000179,2]
[352010899,1738877459587,-419.66574531,0.000179,2]
[352010900,1738877459597,-419.66574531,0.000179,2]
[352010901,1738877459607,-419.66574531,0.000179,2]
[352010902,1738877459617,-419.66574531,0.000179,2]
[352010903,1738877459627,-419.66574531,0.000179,2]
[352010904,1738877459636,-419.66,0.000179,2]
[352010905,1738877459648,-500.0,0.000179,6]
[352010906,1738877459663,-1856.0,0.00017913,2]
[352010907,1738877459675,-151.0,0.0001792,2]
[352010908,1738877459684,-151.0,0.0001792,2]
[352010909,1738877459694,-500.0,0.0001792,2]
[352010910,1738877459704,-500.0,0.0001792,2]
[352010911,1738877459715,-500.0,0.0001792,2]
[352010912,1738877459726,-789.84,0.0001792,2]
[352010913,1738877459735,-533.41,0.0001792,2]
[352010914,1738877459745,-500.0,0.0001792,2]
[352010915,1738877459754,-537.38,0.0001792,2]
[352010916,1738877459764,-850.56,0.0001792,2]
[352010917,1738877459775,-656.98,0.0001792,2]
[352010918,1738877459784,-500.0,0.0001792,2]
[352010919,1738877459794,-431.35,0.0001792,2]
[352010920,1738877459803,-500.0,0.0001792,2]
[352010921,1738877459813,-1251.75,0.0001792,2]
[352010922,1738877459823,-500.0,0.0001792,2]
[352010923,1738877459833,-500.0,0.0001792,2]
[352010924,1738877459842,-500.0,0.0001792,2]
[352010925,1738877459852,-500.0,0.0001792,2]
[352010926,1738877459862,-568.0,0.0001792,2]
[352010927,1738877459871,-638.0,0.0001792,2]
[352010928,1738877459881,-1826.0,0.0001792,2]
[352010929,1738877459890,-1264.0,0.0001792,2]
[352010930,1738877459899,-907.0,0.0001792,2]
[352010931,1738877459909,-783.0,0.0001792,2]
[352010932,1738877459930,-2953.0,0.0001792,2]
[352010933,1738877459939,-539.0,0.0001792,2]
[352010934,1738877459949,-4023.0,0.0001792,2]
[352010935,1738877459958,-3911.0,0.0001792,2]
[352010936,1738877459968,-150.0,0.0001792,2]
[352010937,1738877459979,-2023.0,0.0001792,2]
[352010938,1738877459988,-662.895,0.0001792,2]
[352010939,1738877460000,-1272.0,0.0001792,2]
[352010940,1738877460010,-500.0,0.00017921,2]
[352010941,1738877460021,-500.0,0.00017921,2]
[352010942,1738877460032,-500.0,0.00017921,2]
[352010943,1738877460043,-500.0,0.00017921,2]
[352010944,1738877460053,-325.61,0.00017921,2]
[352010945,1738877460063,-500.0,0.00017921,2]
[352010946,1738877460073,-500.0,0.00017921,2]
[352010947,1738877460082,-500.0,0.00017921,2]
[352010948,1738877460092,-237.58,0.00017921,2]
[352010949,1738877460101,-500.0,0.00017921,2]
[352010950,1738877460112,-500.0,0.00017921,2]
[352010951,1738877460122,-500.0,0.00017921,2]
[352010952,1738877460132,-287.48,0.00017921,2]
[352010953,1738877460142,-500.0,0.00017921,2]
[352010954,1738877460152,-645.74,0.00017921,2]
[352010955,1738877460162,-500.0,0.00017921,2]
[352010956,1738877460173,-500.0,0.00017921,2]
[352010957,1738877460184,-500.0,0.00017921,2]
[352010958,1738877460194,-500.0,0.00017921,2]
[352010959,1738877460205,-500.0,0.00017921,2]
[352010960,1738877460215,-500.0,0.00017921,2]
[352010961,1738877460225,-500.0,0.00017921,2]
[352010962,1738877460235,-500.0,0.00017921,2]
[352010963,1738877460244,-500.0,0.00017921,2]
[352010964,1738877460255,-500.0,0.00017921,2]
[352010965,1738877460266,-500.0,0.00017921,2]
[352010966,1738877460275,-500.0,0.00017921,2]
[352010967,1738877460285,-500.0,0.00017921,2]
[352010968,1738877460295,-500.0,0.00017921,2]
[352010969,1738877460304,-500.0,0.00017921,2]
[352010970,1738877460314,-500.0,0.00017921,2]
[352010971,1738877460324,-500.0,0.00017921,2]
[352010972,1738877460333,-500.0,0.00017921,2]
[352010973,1738877460343,-500.0,0.00017921,2]
[352010974,1738877460353,-601.34,0.00017921,2]
[352010975,1738877460362,-500.0,0.00017921,2]
[352010976,1738877460372,-728.77,0.00017921,2]
[352010977,1738877460382,-500.0,0.00017921,2]
[352010978,1738877460391,-500.0,0.00017921,2]
[352010979,1738877460401,-500.0,0.00017921,2]
[352010980,1738877460411,-500.0,0.00017921,2]
[352010981,1738877460422,-156.921718,0.00017921,2]
[352010982,1738877460431,-500.0,0.00017921,2]
[352010983,1738877460442,-500.0,0.00017921,2]
[352010984,1738877460451,-774.57,0.00017921,2]
[352010985,1738877460461,-435.48,0.00017921,2]
[352010986,1738877460470,-564.03,0.00017921,2]
[352010987,1738877460480,-155.564856,0.00017921,2]
[352010988,1738877460490,-500.0,0.00017921,2]
[352010989,1738877460499,-500.0,0.00017921,2]
[352010990,1738877460509,-500.0,0.00017921,2]
[352010991,1738877460518,-500.0,0.00017921,2]
[352010992,1738877460528,-655.03,0.00017921,2]
[352010993,1738877460538,-532.71,0.00017921,2]
[352010994,1738877460547,-500.0,0.00017921,2]
[352010995,1738877460558,-733.01,0.00017921,2]
[352010996,1738877460568,-500.0,0.00017921,2]
[352010997,1738877460578,-615.44,0.00017921,2]
[352010998,1738877460587,-500.0,0.00017921,2]
[352010999,1738877460597,-246.6,0.00017921,2]
[352011000,1738877460607,-500.0,0.00017921,2]
[352011001,1738877460617,-913.04,0.00017921,2]
[352011002,1738877460627,-782.55,0.00017921,2]
[352011003,1738877460636,-500.0,0.00017921,2]
[352011004,1738877460646,-1159.47,0.00017921,2]
[352011005,1738877460656,-1295.06,0.00017921,2]
[352011006,1738877460666,-1114.59,0.00017921,2]
[352011007,1738877460675,-500.0,0.00017921,2]
[352011008,1738877460685,-549.45,0.00017921,2]
[352011009,1738877460694,-530.9,0.00017921,2]
[352011010,1738877460704,-1027.73,0.00017921,2]
[352011011,1738877460715,-500.0,0.00017921,2]
[352011012,1738877460724,-683.79,0.00017921,2]
[352011013,1738877460733,-1902.23,0.00017921,2]
[352011014,1738877460743,-2212.42,0.00017921,2]
[352011015,1738877460752,-500.0,0.00017921,2]
[352011016,1738877460762,-500.0,0.00017921,2]
[352011017,1738877460772,-1063.34,0.00017921,2]
[352011018,1738877460781,-500.0,0.00017921,2]
[352011019,1738877460791,-500.0,0.00017921,2]
[352011020,1738877460801,-858.47,0.00017921,2]
[352011021,1738877460811,-836.33,0.00017921,2]
[352011022,1738877460820,-735.99,0.00017921,2]
[352011023,1738877460829,-504.02,0.00017921,2]
[352011024,1738877460839,-701.33,0.00017921,2]
[352011025,1738877460848,-633.47,0.00017921,2]
[352011026,1738877460858,-500.0,0.00017921,2]
[352011027,1738877460868,-1270.6,0.00017921,2]
[352011028,1738877460877,-500.0,0.00017921,2]
[352011029,1738877460887,-514.06,0.00017921,2]
[352011030,1738877460897,-400.72,0.00017921,2]
[352011031,1738877460906,-500.0,0.00017921,2]
[352011032,1738877460916,-500.0,0.00017921,2]
[352011033,1738877460926,-864.15,0.00017921,2]
[352011034,1738877460936,-500.0,0.00017921,2]
[352011035,1738877460945,-500.0,0.00017921,2]
[352011036,1738877460955,-500.0,0.00017921,2]
[352011037,1738877460964,-522.68,0.00017921,2]
[352011038,1738877460974,-500.0,0.00017921,2]
[352011039,1738877460984,-934.1,0.00017921,2]
[352011040,1738877460994,-500.0,0.00017921,2]
[352011041,1738877461004,-697.18,0.00017921,2]
[352011042,1738877461013,-500.0,0.00017921,2]
[352011043,1738877461023,-500.0,0.00017921,2]
[352011044,1738877461036,-500.0,0.00017921,2]
[352011045,1738877461046,-503.69,0.00017921,2]
[352011046,1738877461055,-659.1,0.00017921,2]
[352011047,1738877461065,-662.32,0.00017921,2]
[352011048,1738877461075,-150.0,0.00017922,2]
[352011049,1738877461086,-766.58,0.00017932,2]
[352011050,1738877461095,-500.0,0.00017932,2]
[352011051,1738877461104,-730.96,0.00017936,2]
[352011052,1738877461115,-555.39,0.00017936,2]
[352011053,1738877461125,-1164.37,0.00017936,2]
[352011054,1738877461137,-500.0,0.00017936,2]
[352011055,1738877461147,-600.37,0.00017936,2]
[352011056,1738877461157,-500.0,0.00017936,2]
[352011057,1738877461167,-819.93,0.00017936,2]
[352011058,1738877461178,-855.32,0.00017936,2]
[352011059,1738877461188,-500.0,0.00017936,2]
[352011060,1738877461198,-563.31,0.00017936,2]
[352011061,1738877461208,-686.03,0.00017936,2]
[352011062,1738877461218,-514.35373978,0.00017936,2]
[352011063,1738877461227,-590.98,0.00017936,2]
[352011064,1738877461237,-500.0,0.00017936,2]
[352011065,1738877461247,-919.03,0.00017936,2]
[352011066,1738877461257,-893.13,0.00017936,2]
[352011067,1738877461267,-500.0,0.00017936,2]
[352011068,1738877461276,-610.64,0.00017936,2]
[352011069,1738877461286,-980.37,0.00017936,2]
[352011070,1738877461296,-1638.55,0.00017936,2]
[352011071,1738877461306,-2549.26,0.00017936,2]
[352011072,1738877461316,-389.36409071,0.00017937,2]
[352011073,1738877461325,-500.0,0.00017937,2]
[352011074,1738877461335,-500.0,0.00017937,2]
[352011075,1738877461344,-645.54,0.00017937,2]
[352011076,1738877461353,-256.1,0.00017937,2]
[352011077,1738877461363,-500.0,0.00017937,2]
[352011078,1738877461372,-500.0,0.00017937,2]
[352011079,1738877461382,-500.0,0.00017937,2]
[352011080,1738877461391,-500.0,0.00017937,2]
[352011081,1738877461401,-500.0,0.00017937,2]
[352011082,1738877461410,-300.56,0.00017937,2]
[352011083,1738877461420,-332.96,0.00017937,2]
[352011084,1738877461429,-500.0,0.00017937,2]
[352011085,1738877461438,-500.0,0.00017937,2]
[352011086,1738877461448,-500.74,0.00017937,2]
[352011087,1738877461457,-426.29406943,0.00017937,2]
[352011088,1738877461467,-500.0,0.00017937,2]
[352011089,1738877461476,-477.86,0.00017937,2]
[352011090,1738877461485,-500.0,0.00017937,2]
[352011091,1738877461495,-770.63,0.00017937,2]
[352011092,1738877461505,-789.51,0.00017937,2]
[352011093,1738877461515,-350.68,0.00017937,2]
[352011094,1738877461524,-748.76,0.00017937,2]
[352011095,1738877461533,-565.55,0.00017937,2]
[352011096,1738877461542,-874.49,0.00017937,2]
[352011097,1738877461551,-743.54,0.00017937,2]